bitfinex/quotes_BTCUSD_20250223
["timestamp","ask_amount","ask_price","bid_price","bid_amount"]
[1740318974810,0.10264569,96068.0,96066.0,0.0037]
[1740318974985,0.10264569,96068.0,96066.0,0.0027]
[1740318975348,0.10264569,96068.0,96066.0,0.0047]
[1740318977600,0.02503907,96069.0,96066.0,0.0047]
[1740318978165,0.02503907,96068.0,96066.0,0.0047]
[1740318978590,0.02503907,96068.0,96066.0,0.0027]
[1740318979020,0.02503907,96068.0,96066.0,0.0037]
[1740318979220,0.02503907,96068.0,96066.0,0.0027]
[1740318980619,0.02503907,96068.0,96066.0,0.0037]
[1740318980815,0.02503907,96068.0,96066.0,0.0027]
[1740318981221,0.02503907,96068.0,96066.0,0.0047]
[1740318984140,0.02503907,96067.0,96066.0,0.0047]
[1740318985000,0.02503907,96067.0,96066.0,0.0027]
[1740318985201,0.02503907,96067.0,96066.0,0.0017]
[1740318985358,0.02503907,96067.0,96066.0,0.0037]
[1740319003150,0.02503907,96067.0,96066.0,0.02460432]
[1740319017627,0.02503907,96067.0,96066.0,0.02260432]
[1740319017919,0.02503907,96067.0,96066.0,0.02360432]
[1740319018438,0.02503907,96067.0,96066.0,0.02260432]
[1740319018778,0.02603907,96067.0,96066.0,0.02260432]
[1740319018956,0.02503907,96067.0,96066.0,0.02260432]
[1740319019790,0.02503907,96067.0,96066.0,0.02460432]
[1740319021219,0.02503907,96067.0,96066.0,0.0037]
[1740319023161,0.12768476,96067.0,96066.0,0.0037]
[1740319023632,0.12768476,96067.0,96066.0,0.0017]
[1740319023879,0.12768476,96067.0,96066.0,0.0027]
[1740319024374,0.12768476,96067.0,96066.0,0.0017]
[1740319024630,0.12768476,96067.0,96066.0,0.0027]
[1740319025084,0.12868476,96067.0,96066.0,0.0027]
[1740319025337,0.12768476,96067.0,96066.0,0.0027]
[1740319025582,0.12868476,96067.0,96066.0,0.0027]
[1740319026564,0.12768476,96067.0,96066.0,0.0027]
[1740319026764,0.12868476,96067.0,96066.0,0.0017]
[1740319026999,0.12868476,96067.0,96066.0,0.0027]
[1740319040062,0.02603907,96067.0,96066.0,0.0027]
[1740319040889,0.02603907,96067.0,96066.0,0.0526]
[1740319054257,0.02603907,96067.0,96066.0,0.07329236]
[1740319074704,0.02603907,96067.0,96066.0,0.15429236]
[1740319075545,0.02503907,96067.0,96066.0,0.15429236]
[1740319075954,0.02503907,96067.0,96066.0,0.15529236]
[1740319076665,0.02503907,96067.0,96066.0,0.25918705]
[1740319076854,0.02503907,96067.0,96066.0,0.25893805]
[1740319077346,0.02503907,96067.0,96066.0,0.25793805]
[1740319077777,0.02503907,96067.0,96066.0,0.26293805]
[1740319078611,0.02503907,96067.0,96066.0,0.26093805]
[1740319079022,0.02503907,96067.0,96066.0,0.25593805]
[1740319079230,0.02503907,96067.0,96066.0,0.25793805]
[1740319079405,0.02503907,96067.0,96066.0,0.25993805]
[1740319079853,0.02503907,96067.0,96066.0,0.26093805]
[1740319080063,0.02503907,96067.0,96066.0,0.26793805]
[1740319082129,0.0008502,96075.0,96066.0,0.26793805]
[1740319082331,0.0008502,96075.0,96067.0,0.10264569]
[1740319084225,0.0008502,96075.0,96067.0,0.10764569]
[1740319086513,0.0008502,96075.0,96068.0,0.00124893]
[1740319086734,0.0008502,96075.0,96069.0,0.10264569]
[1740319086950,0.0008502,96075.0,96069.0,0.10389462]
[1740319089014,0.0008502,96075.0,96069.0,0.10589462]
[1740319089592,0.0008502,96075.0,96069.0,0.11089462]
[1740319093589,0.0008502,96075.0,96069.0,0.10964569]
[1740319093803,0.0008502,96075.0,96069.0,0.10264569]
[1740319094524,0.0008502,96075.0,96069.0,0.10464569]
[1740319094837,0.0008502,96075.0,96069.0,0.10589462]
[1740319095783,0.0008502,96075.0,96069.0,0.10389462]
[1740319095977,0.0008502,96075.0,96069.0,0.10589462]
[1740319096210,0.0008502,96075.0,96069.0,0.11089462]
[1740319096886,0.0008502,96075.0,96069.0,0.10589462]
[1740319097033,0.0008502,96075.0,96069.0,0.10789462]
[1740319097518,0.0008502,96075.0,96069.0,0.10589462]
[1740319098024,0.0008502,96075.0,96069.0,0.11089462]
[1740319098366,0.0008502,96075.0,96070.0,0.00124893]
[1740319098593,0.0008502,96075.0,96071.0,0.10264569]
[1740319098790,0.0008502,96075.0,96072.0,0.00124893]
[1740319098996,0.0008502,96075.0,96073.0,0.10264569]
[1740319100363,0.0008502,96075.0,96073.0,0.10964569]
[1740319114572,0.0008502,96075.0,96073.0,0.11134589]
[1740319131454,0.0008502,96075.0,96074.0,0.00124893]
[1740319131758,0.0008502,96075.0,96074.0,0.10389462]
[1740319133115,0.0008502,96075.0,96074.0,0.10589462]
[1740319133357,0.0008502,96075.0,96074.0,0.10389462]
[1740319133731,0.0008502,96075.0,96074.0,0.10589462]
[1740319133936,0.0008502,96075.0,96074.0,0.10464569]
[1740319134266,0.0008502,96075.0,96074.0,0.10964569]
[1740319135039,0.0008502,96075.0,96074.0,0.10464569]
[1740319135443,0.0008502,96075.0,96074.0,0.10964569]
[1740319136246,0.0008502,96075.0,96074.0,0.1108946]
[1740319138418,0.0008502,96075.0,96074.0,0.13133355]
[1740319140711,0.0008502,96075.0,96074.0,0.12633355]
[1740319140914,0.0008502,96075.0,96074.0,0.12433355]
[1740319141300,0.0008502,96075.0,96074.0,0.4492715]
[1740319141505,0.0008502,96075.0,96074.0,0.44802259]
[1740319141839,0.0008502,96075.0,96074.0,0.45502259]
[1740319142287,0.0008502,96075.0,96074.0,0.47502259]
[1740319142904,0.0008502,96075.0,96074.0,0.47102259]
[1740319143449,0.0008502,96075.0,96074.0,0.47502259]
[1740319143655,0.0008502,96075.0,96074.0,0.47102259]
[1740319144011,0.0008502,96075.0,96074.0,0.47802259]
[1740319144444,0.0008502,96075.0,96074.0,0.47102259]
[1740319144771,0.0008502,96075.0,96074.0,0.47802259]
[1740319146498,0.0008502,96075.0,96074.0,0.50581451]
[1740319147716,0.0008502,96075.0,96074.0,0.49881451]
[1740319148404,0.0008502,96075.0,96074.0,0.50581451]
[1740319148655,0.0008502,96075.0,96074.0,0.49881451]
[1740319149326,0.0008502,96075.0,96074.0,0.49181451]
[1740319149612,0.0008502,96075.0,96074.0,0.49881451]
[1740319150096,0.0008502,96075.0,96074.0,0.50581451]
[1740319150329,0.0008502,96075.0,96074.0,0.50751471]
[1740319151431,0.0008502,96075.0,96074.0,0.50051471]
[1740319151769,0.18891969,96076.0,96075.0,0.32774085]
[1740319151982,0.18891969,96076.0,96075.0,0.46288364]
[1740319152760,0.15765888,96076.0,96075.0,0.46288364]
[1740319153905,0.15765888,96076.0,96075.0,0.46988364]
[1740319154116,0.14638765,96076.0,96075.0,0.47688364]
[1740319154323,0.11512684,96076.0,96075.0,0.47688364]
[1740319154530,0.08386603,96076.0,96075.0,0.47688364]
[1740319155591,0.02783954,96076.0,96075.0,0.47688364]
[1740319158100,0.02783954,96076.0,96075.0,0.49814686]
[1740319159547,0.02783954,96076.0,96075.0,0.47814686]
[1740319160306,0.02783954,96076.0,96075.0,0.48602686]
[1740319160687,0.02783954,96076.0,96075.0,0.46602686]
[1740319160915,0.02783954,96076.0,96075.0,0.48602686]
[1740319161869,0.02783954,96076.0,96075.0,0.50602686]
[1740319163087,0.02783954,96076.0,96075.0,0.50772706]
[1740319164583,0.02783954,96076.0,96075.0,0.74152706]
[1740319165544,0.02783954,96076.0,96075.0,0.72152706]
[1740319166302,0.02783954,96076.0,96075.0,0.74152706]
[1740319169902,0.02783954,96076.0,96075.0,0.72152706]
[1740319171361,0.02783954,96076.0,96075.0,0.74152706]
[1740319171507,0.02783954,96076.0,96075.0,0.72152706]
[1740319171733,0.02783954,96076.0,96075.0,0.74152706]
[1740319172342,0.02783954,96076.0,96075.0,0.72152706]
[1740319172732,0.02783954,96076.0,96075.0,0.74152706]
[1740319172937,0.02783954,96076.0,96075.0,0.72152706]
[1740319173138,0.02783954,96076.0,96075.0,0.74152706]
[1740319173346,0.02783954,96076.0,96075.0,0.72152706]
[1740319175035,0.02783954,96076.0,96075.0,0.74152706]
[1740319175412,0.02783954,96076.0,96075.0,0.72152706]
[1740319176554,0.02783954,96076.0,96075.0,0.74152706]
[1740319176755,0.02868964,96076.0,96075.0,0.74152706]
[1740319183753,0.02868964,96076.0,96075.0,0.85122706]
[1740319183960,0.02868964,96076.0,96075.0,0.74152706]
[1740319187516,0.02868964,96076.0,96075.0,0.73364706]
[1740319187878,0.02868964,96076.0,96075.0,0.74152706]
[1740319196759,0.0004,96089.0,96086.0,0.03454085]
[1740319196961,0.0004,96089.0,96086.0,0.32093218]
[1740319197281,0.0004,96089.0,96086.0,0.31968364]
[1740319198070,0.0004,96089.0,96086.0,0.32668364]
[1740319198924,0.0004,96089.0,96086.0,0.34668364]
[1740319199125,0.0004,96089.0,96086.0,0.35368364]
[1740319202501,0.0004,96089.0,96086.0,0.34156364]
[1740319202705,0.0816,96089.0,96086.0,0.32702279]
[1740319202895,0.0816,96089.0,96086.0,0.3473712]
[1740319203459,0.0816,96089.0,96086.0,0.36191205]
[1740319203656,0.0816,96089.0,96086.0,0.3813944]
[1740319205379,0.0816,96089.0,96086.0,0.33897355]
[1740319205602,0.07823012,96087.0,96086.0,0.18897355]
[1740319206435,0.07823012,96087.0,96086.0,0.15647645]
[1740319206858,0.07823012,96087.0,96086.0,0.20349775]
[1740319207879,0.07823012,96087.0,96086.0,0.1889569]
[1740319210210,0.07823012,96087.0,96086.0,0.16947455]
[1740319210414,0.07823012,96087.0,96086.0,0.1369941]
[1740319213261,0.07823012,96087.0,96086.0,0.15645987]
[1740319216557,0.07823012,96087.0,96086.0,0.17100072]
[1740319220221,0.07823012,96087.0,96086.0,0.15153495]
[1740319224683,0.07823012,96087.0,96086.0,0.24496412]
[1740319228276,0.07823012,96087.0,96086.0,0.15153495]
[1740319232802,0.00183012,96087.0,96086.0,0.15153495]
[1740319233907,0.00183012,96087.0,96086.0,0.15278368]
[1740319235730,0.00183012,96087.0,96086.0,0.15153495]
[1740319245741,0.00183012,96087.0,96086.0,0.24496412]
[1740319251098,0.00183012,96087.0,96086.0,0.15153495]
[1740319253097,0.00183012,96087.0,96086.0,0.1369941]
[1740319253705,0.00183012,96087.0,96086.0,0.15153495]
[1740319254902,0.00183012,96087.0,96086.0,0.1369941]
[1740319260227,0.00183012,96087.0,96086.0,0.1299941]
[1740319260616,0.00183012,96087.0,96086.0,0.1229941]
[1740319260819,0.00183012,96087.0,96086.0,0.1279941]
[1740319261026,0.00183012,96087.0,96086.0,0.1229941]
[1740319261385,0.00183012,96087.0,96086.0,0.1349941]
[1740319261793,0.00183012,96087.0,96086.0,0.1279941]
[1740319262689,0.00183012,96087.0,96086.0,0.1349941]
[1740319273491,7.001e-05,96087.0,96086.0,0.1349941]
[1740319282984,7.001e-05,96087.0,96086.0,0.1279941]
[1740319283536,7.001e-05,96087.0,96086.0,0.1296943]
[1740319283943,7.001e-05,96087.0,96086.0,0.1246943]
[1740319284115,7.001e-05,96087.0,96086.0,0.1296943]
[1740319284679,7.001e-05,96087.0,96086.0,0.1366943]
[1740319285529,7.001e-05,96087.0,96086.0,0.03404861]
[1740319287021,7.001e-05,96087.0,96086.0,0.02904861]
[1740319287385,7.001e-05,96087.0,96086.0,0.02204861]
[1740319287803,7.001e-05,96087.0,96086.0,0.02904861]
[1740319288032,7.001e-05,96087.0,96086.0,0.03404861]
[1740319288274,7.001e-05,96087.0,96086.0,0.02904861]
[1740319288630,7.001e-05,96087.0,96086.0,0.03404861]
[1740319288831,7.001e-05,96087.0,96086.0,0.0137002]
[1740319289487,7.001e-05,96087.0,96086.0,0.0067002]
[1740319290189,7.001e-05,96087.0,96086.0,0.0017002]
[1740319290591,7.001e-05,96087.0,96086.0,0.0067002]
[1740319290792,7.001e-05,96087.0,96086.0,0.0137002]
[1740319293015,0.02510908,96087.0,96086.0,0.0137002]
[1740319297075,0.02595918,96087.0,96086.0,0.0137002]
[1740319297275,0.02595918,96087.0,96086.0,0.0017002]
[1740319297477,0.02595918,96087.0,96086.0,0.0067002]
[1740319297839,0.02595918,96087.0,96086.0,0.0137002]
[1740319301231,0.02595918,96087.0,96086.0,0.0017002]
[1740319301556,0.02595918,96087.0,96086.0,0.0137002]
[1740319302146,0.02595918,96087.0,96086.0,0.0067002]
[1740319302395,0.02595918,96087.0,96086.0,0.0137002]
[1740319303038,0.02595918,96087.0,96086.0,0.0087002]
[1740319303436,0.02595918,96087.0,96086.0,0.0137002]
[1740319303995,0.02595918,96087.0,96086.0,0.0087002]
[1740319304307,0.02595918,96087.0,96086.0,0.0067002]
[1740319304936,0.02595918,96087.0,96086.0,0.0137002]
[1740319306740,0.02595918,96087.0,96086.0,0.0087002]
[1740319306964,0.02595918,96087.0,96086.0,0.0067002]
[1740319307500,0.02595918,96087.0,96086.0,0.0137002]
[1740319308888,0.02595918,96087.0,96086.0,0.0067002]
[1740319309314,0.02595918,96087.0,96086.0,0.0017002]
[1740319309488,0.02595918,96087.0,96086.0,0.0067002]
[1740319311139,0.02595918,96087.0,96086.0,0.0137002]
[1740319359922,0.02595918,96087.0,96086.0,0.00894679]
[1740319368037,0.02595918,96087.0,96086.0,0.01064699]
[1740319379869,0.10615918,96087.0,96086.0,0.01064699]
[1740319380038,0.35880487,96087.0,96086.0,0.01064699]
[1740319380236,0.40460487,96087.0,96086.0,0.01064699]
[1740319380635,0.40460487,96087.0,96086.0,0.00364699]
[1740319380857,0.40460487,96087.0,96086.0,0.0067002]
[1740319381240,0.40560487,96087.0,96086.0,0.0067002]
[1740319381444,0.40560487,96087.0,96086.0,0.0017002]
[1740319381899,0.40660487,96087.0,96086.0,0.0037002]
[1740319382102,0.40460487,96087.0,96086.0,0.0037002]
[1740319382387,0.40560487,96087.0,96086.0,0.0037002]
[1740319383159,0.40560487,96087.0,96086.0,0.0017002]
[1740319383359,0.40560487,96087.0,96086.0,0.0037002]
[1740319383935,0.40460487,96087.0,96086.0,0.0017002]
[1740319384452,0.40560487,96087.0,96086.0,0.0037002]
[1740319388686,0.35880487,96087.0,96086.0,0.0037002]
[1740319389155,0.35980487,96087.0,96086.0,0.0017002]
[1740319389549,0.35980487,96087.0,96086.0,0.0037002]
[1740319391952,0.35880487,96087.0,96086.0,0.0037002]
[1740319392153,0.35980487,96087.0,96086.0,0.0017002]
[1740319392552,0.35980487,96087.0,96086.0,0.0037002]
[1740319396669,0.35980487,96087.0,96086.0,0.0017002]
[1740319397002,0.35880487,96087.0,96086.0,0.0037002]
[1740319398379,0.35880487,96087.0,96086.0,0.0017002]
[1740319398496,0.35880487,96087.0,96086.0,0.0037002]
[1740319398697,0.35980487,96087.0,96086.0,0.0037002]
[1740319399649,0.35980487,96087.0,96086.0,0.02440632]
[1740319400124,0.35880487,96087.0,96086.0,0.02440632]
[1740319400241,0.35980487,96087.0,96086.0,0.02440632]
[1740319401771,0.35980487,96087.0,96086.0,0.02240632]
[1740319401971,0.35980487,96087.0,96086.0,0.02440632]
[1740319403167,0.35880487,96087.0,96086.0,0.02440632]
[1740319403363,0.35980487,96087.0,96086.0,0.02440632]
[1740319409432,0.17695918,96087.0,96086.0,0.02440632]
[1740319409636,0.02695918,96087.0,96086.0,0.02440632]
[1740319463276,0.02695918,96087.0,96086.0,0.0037002]
[1740319474195,0.02695918,96087.0,96086.0,0.1324002]
[1740319486506,0.02695918,96087.0,96086.0,0.1304002]
[1740319486734,0.02695918,96087.0,96086.0,0.1324002]
[1740319486933,0.02695918,96087.0,96086.0,0.23504589]
[1740319488009,0.02695918,96087.0,96086.0,0.23304589]
[1740319488384,0.02695918,96087.0,96086.0,0.24004589]
[1740319488994,0.02695918,96087.0,96086.0,0.25458674]
[1740319489651,0.00192011,96087.0,96086.0,0.25458674]
[1740319491684,0.00192011,96087.0,96086.0,0.24758674]
[1740319492117,0.00192011,96087.0,96086.0,0.25458674]
[1740319492480,0.00192011,96087.0,96086.0,0.24758674]
[1740319492681,0.00192011,96087.0,96086.0,0.25458674]
[1740319494431,0.00092011,96087.0,96086.0,0.25458674]
[1740319494640,0.00092011,96087.0,96086.0,0.24758674]
[1740319494993,0.00092011,96087.0,96086.0,0.25458674]
[1740319496094,0.00092011,96087.0,96086.0,0.24758674]
[1740319496314,0.00092011,96087.0,96086.0,0.25458674]
[1740319498231,0.00092011,96087.0,96086.0,0.40458674]
[1740319499212,0.00092011,96087.0,96086.0,0.39758674]
[1740319499428,0.00092011,96087.0,96086.0,0.41158674]
[1740319500244,0.00092011,96087.0,96086.0,0.40458674]
[1740319500654,0.00092011,96087.0,96086.0,0.41158674]
[1740319500887,0.00092011,96087.0,96086.0,0.39758674]
[1740319501381,0.00092011,96087.0,96086.0,0.41158674]
[1740319501655,0.00092011,96087.0,96086.0,0.40458674]
[1740319502014,0.00092011,96087.0,96086.0,0.39758674]
[1740319502432,0.00092011,96087.0,96086.0,0.40458674]
[1740319503104,0.00092011,96087.0,96086.0,0.41158674]
[1740319503263,0.00092011,96087.0,96086.0,0.40458674]
[1740319503986,0.00092011,96087.0,96086.0,0.41158674]
[1740319504141,0.00092011,96087.0,96086.0,0.40458674]
[1740319505353,0.00092011,96087.0,96086.0,0.39758674]
[1740319505678,0.00092011,96087.0,96086.0,0.40458674]
[1740319506455,0.0004,96089.0,96086.0,0.40458674]
[1740319506620,0.00037969,96091.0,96090.0,0.1251]
[1740319506774,0.00081183,96091.0,96090.0,0.39353496]
[1740319506975,0.00081183,96091.0,96090.0,0.39228654]
[1740319507472,0.00081183,96091.0,96090.0,0.40012654]
[1740319508092,0.00081183,96091.0,96090.0,0.40712654]
[1740319508295,0.00081183,96091.0,96090.0,0.40012654]
[1740319508504,0.00081183,96091.0,96090.0,0.40712654]
[1740319508704,0.00081183,96091.0,96090.0,0.41412654]
[1740319508928,0.00081183,96091.0,96090.0,0.40712654]
[1740319510086,0.02503907,96116.0,96091.0,0.16454085]
[1740319510293,0.00291865,96104.0,96102.0,0.14014085]
[1740319510517,0.00291865,96104.0,96103.0,0.3940349]
[1740319510719,0.00291865,96104.0,96103.0,0.39278654]
[1740319511470,0.00291865,96104.0,96103.0,0.42511716]
[1740319511695,0.00291865,96104.0,96103.0,0.43211716]
[1740319512258,0.00291865,96104.0,96103.0,0.43911716]
[1740319513058,0.00291865,96104.0,96103.0,0.43211716]
[1740319513644,0.00291865,96104.0,96103.0,0.40678654]
[1740319513943,0.00291865,96104.0,96103.0,0.39978654]
[1740319514148,0.00291865,96104.0,96103.0,0.40678654]
[1740319514354,0.00291865,96104.0,96103.0,0.39978654]
[1740319514890,0.00291865,96104.0,96103.0,0.45208118]
[1740319515118,0.00291865,96104.0,96103.0,0.45908118]
[1740319515725,0.00291865,96104.0,96103.0,0.47908118]
[1740319516355,0.00291865,96104.0,96103.0,0.47208118]
[1740319516558,0.00291865,96104.0,96103.0,0.45208118]
[1740319517003,0.00291865,96104.0,96103.0,0.45992118]
[1740319517184,0.00291865,96104.0,96103.0,0.46692118]
[1740319517353,0.00291865,96104.0,96103.0,0.47475952]
[1740319518020,0.00291865,96104.0,96103.0,0.49475952]
[1740319518187,0.00291865,96104.0,96103.0,0.51565136]
[1740319518380,0.00291865,96104.0,96103.0,0.48335672]
[1740319518582,0.00291865,96104.0,96103.0,0.7293904]
[1740319519153,0.00291865,96104.0,96103.0,0.7493904]
[1740319519468,0.00291865,96104.0,96103.0,0.74939091]
[1740319520300,0.00291865,96104.0,96103.0,0.74239091]
[1740319520500,0.00291865,96104.0,96103.0,0.73539091]
[1740319520728,0.00291865,96104.0,96103.0,0.74239091]
[1740319521107,0.02503907,96134.0,96106.0,0.1256]
[1740319521311,0.02503907,96147.0,96107.0,0.4140347]
[1740319521653,0.02503907,96147.0,96107.0,0.41278654]
[1740319522276,0.02503907,96147.0,96107.0,0.39278654]
[1740319522581,0.02503907,96147.0,96107.0,0.41278654]
[1740319523215,0.0775,96139.0,96107.0,0.39278654]
[1740319523351,0.02503907,96147.0,96117.0,0.15]
[1740319523547,0.0004899,96129.0,96128.0,0.37714569]
[1740319523771,0.0004899,96129.0,96128.0,0.38498569]
[1740319524177,0.0004899,96129.0,96128.0,0.39952654]
[1740319524706,0.0004899,96129.0,96128.0,0.40652654]
[1740319525060,0.0004899,96129.0,96128.0,0.41352654]
[1740319525297,0.0004899,96129.0,96128.0,0.40652654]
[1740319525552,0.0004899,96129.0,96128.0,0.41352654]
[1740319526258,0.0004899,96129.0,96128.0,0.40652654]
[1740319526697,0.00039789,96129.0,96128.0,0.41352654]
[1740319527527,0.00039789,96129.0,96128.0,0.42135857]
[1740319527783,0.00039789,96129.0,96128.0,0.43167186]
[1740319527956,0.00039789,96129.0,96128.0,0.42383186]
[1740319528159,0.00039789,96129.0,96128.0,0.43167186]
[1740319529390,0.00039789,96129.0,96128.0,0.42467186]
[1740319529802,0.00039789,96129.0,96128.0,0.45215727]
[1740319530054,0.00039789,96129.0,96128.0,0.44515727]
[1740319530255,0.00039789,96129.0,96128.0,0.45215727]
[1740319530453,0.00039789,96129.0,96128.0,0.44515727]
[1740319530950,0.00124799,96129.0,96128.0,0.45215727]
[1740319531165,0.00124799,96129.0,96128.0,0.44515727]
[1740319531398,0.00124799,96129.0,96128.0,0.47215727]
[1740319531574,0.00124799,96129.0,96128.0,1.50034095]
[1740319531779,0.00124799,96129.0,96128.0,1.50734095]
[1740319531975,0.00124799,96129.0,96128.0,1.48734095]
[1740319532120,0.00124799,96129.0,96128.0,1.50734095]
[1740319532690,0.00124799,96129.0,96128.0,1.50034095]
[1740319533232,0.0008499,96150.0,96130.0,0.1305]
[1740319533437,0.0008499,96150.0,96134.0,0.10264569]
[1740319533651,0.0008499,96150.0,96134.0,0.10389364]
[1740319533851,0.0008499,96150.0,96134.0,0.25389364]
[1740319534052,0.0008499,96150.0,96134.0,0.26048569]
[1740319534468,0.0008499,96150.0,96134.0,0.28202654]
[1740319535515,0.0008499,96150.0,96134.0,0.27418654]
[1740319535718,0.0008499,96150.0,96134.0,0.41252654]
[1740319536108,0.0008499,96150.0,96134.0,0.43252654]
[1740319536312,0.0008499,96150.0,96138.0,0.02]
[1740319536435,0.0008499,96150.0,96147.0,0.25264569]
[1740319536754,0.0008499,96150.0,96147.0,0.26718654]
[1740319537771,0.0008499,96150.0,96147.0,0.27418654]
[1740319537966,0.0008499,96150.0,96147.0,0.28118654]
[1740319539339,0.0008499,96150.0,96147.0,0.27418654]
[1740319539867,0.0008499,96150.0,96147.0,0.41168654]
[1740319542296,0.0008499,96150.0,96147.0,1.44702201]
[1740319542895,0.0151314,96148.0,96147.0,1.44702201]
[1740319543486,0.0151314,96148.0,96147.0,1.46737205]
[1740319544713,0.0151314,96148.0,96147.0,1.46037205]
[1740319544928,0.0151314,96148.0,96147.0,1.46737205]
[1740319545430,0.0151314,96148.0,96147.0,1.46037205]
[1740319545628,0.0151314,96148.0,96147.0,1.46737205]
[1740319546136,0.0151314,96148.0,96147.0,1.46037205]
[1740319546332,0.0151314,96148.0,96147.0,1.46737205]
[1740319547388,0.0151314,96148.0,96147.0,1.45337205]
[1740319547690,0.0151314,96148.0,96147.0,1.46037205]
[1740319548653,0.0151314,96148.0,96147.0,1.46737205]
[1740319548974,0.0151314,96148.0,96147.0,1.47521205]
[1740319552177,0.0151314,96148.0,96147.0,1.46821205]
[1740319552382,0.0151314,96148.0,96147.0,1.47521205]
[1740319553770,0.0151314,96148.0,96147.0,1.46821205]
[1740319553910,0.0151314,96148.0,96147.0,1.47521205]
[1740319554323,0.0151314,96148.0,96147.0,1.50746746]
[1740319554645,0.0151314,96148.0,96147.0,1.47521205]
[1740319555346,0.0151314,96148.0,96147.0,1.50746629]
[1740319558105,0.0151314,96148.0,96147.0,1.49346629]
[1740319558329,0.0151314,96148.0,96147.0,1.50046629]
[1740319558493,0.0008499,96150.0,96148.0,0.16454085]
[1740319558694,0.00093978,96150.0,96149.0,0.12627417]
[1740319559029,0.00093978,96150.0,96149.0,0.12502654]
[1740319559254,0.00093978,96150.0,96149.0,0.11048569]
[1740319559454,0.07823978,96150.0,96149.0,0.10264569]
[1740319559621,0.07823978,96150.0,96149.0,0.11718654]
[1740319559996,0.07823978,96150.0,96149.0,0.26718654]
[1740319560615,0.07823978,96150.0,96149.0,0.27418654]
[1740319561001,0.07823978,96150.0,96149.0,0.26718654]
[1740319561209,0.07823978,96150.0,96149.0,0.11664569]
[1740319561516,0.07823978,96150.0,96149.0,0.12418654]
[1740319561727,0.07823978,96150.0,96149.0,0.10264569]
[1740319561924,0.07823978,96150.0,96149.0,0.11664569]
[1740319562139,0.07823978,96150.0,96149.0,0.13118654]
[1740319562330,0.07823978,96150.0,96149.0,0.12418654]
[1740319562528,0.07823978,96150.0,96149.0,0.11718654]
[1740319562693,0.07823978,96150.0,96149.0,0.12418654]
[1740319563735,0.07823978,96150.0,96149.0,0.13118654]
[1740319563943,0.07823978,96150.0,96149.0,0.12418654]
[1740319564598,0.07823978,96150.0,96149.0,0.13118654]
[1740319565890,0.07823978,96150.0,96149.0,0.12418654]
[1740319566086,0.07823978,96150.0,96149.0,0.13118654]
[1740319566730,0.07823978,96150.0,96149.0,0.12418654]
[1740319567113,0.07823978,96150.0,96149.0,0.13118654]
[1740319573446,0.07823978,96150.0,96149.0,0.11664569]
[1740319574043,0.07823978,96150.0,96149.0,0.014]
[1740319574246,0.07823978,96150.0,96148.0,0.0016992]
[1740319574666,0.07823978,96150.0,96149.0,0.014]
[1740319574876,0.07823978,96150.0,96149.0,0.007]
[1740319575080,0.12683978,96150.0,96149.0,0.007]
[1740319575283,0.13133978,96150.0,96149.0,0.007]
[1740319575461,0.04953978,96150.0,96148.0,0.0086992]
[1740319575660,0.0818,96149.0,96148.0,0.0086992]
[1740319576275,0.10683907,96149.0,96148.0,0.0086992]
[1740319577312,0.15543907,96149.0,96148.0,0.0016992]
[1740319577540,0.15543907,96149.0,96148.0,0.0086992]
[1740319577720,0.25808476,96149.0,96148.0,0.0086992]
[1740319578316,0.25808476,96149.0,96148.0,0.0096992]
[1740319578558,0.25808476,96149.0,96148.0,0.0026992]
[1740319578761,0.25808476,96149.0,96148.0,0.0076992]
[1740319580188,0.25808476,96149.0,96148.0,0.0026992]
[1740319580481,0.25808476,96149.0,96148.0,0.0036992]
[1740319580637,0.25808476,96149.0,96148.0,0.0016992]
[1740319581048,0.25808476,96149.0,96148.0,0.0036992]
[1740319581247,0.25808476,96149.0,96148.0,0.0026992]
[1740319582063,0.25808476,96149.0,96148.0,0.02365215]
[1740319582290,0.25808476,96149.0,96148.0,0.0026992]
[1740319582870,0.25808476,96149.0,96148.0,0.0036992]
[1740319583103,0.25808476,96149.0,96148.0,0.0026992]
[1740319584034,0.25808476,96149.0,96148.0,0.0036992]
[1740319584234,0.25808476,96149.0,96148.0,0.0026992]
[1740319584719,0.25808476,96149.0,96148.0,0.0046992]
[1740319584924,0.25808476,96149.0,96148.0,0.0026992]
[1740319585912,0.25808476,96149.0,96148.0,0.0016992]
[1740319586133,0.25808476,96149.0,96148.0,0.0026992]
[1740319586306,0.25808476,96149.0,96148.0,0.0036992]
[1740319586717,0.25808476,96149.0,96148.0,0.0026992]
[1740319586923,0.25808476,96149.0,96148.0,0.0046992]
[1740319590347,0.25808476,96149.0,96148.0,0.0046592]
[1740319591243,0.15628867,96149.0,96148.0,0.0046592]
[1740319591595,0.15628867,96149.0,96148.0,0.02580281]
[1740319592188,0.15628867,96149.0,96148.0,0.02480281]
[1740319592388,0.15628867,96149.0,96148.0,0.02580281]
[1740319592613,0.15628867,96149.0,96148.0,0.02380281]
[1740319592785,0.15628867,96149.0,96148.0,0.02580281]
[1740319592982,0.15628867,96149.0,96148.0,0.02480281]
[1740319593188,0.15628867,96149.0,96148.0,0.02380281]
[1740319593388,0.15628867,96149.0,96148.0,0.02580281]
[1740319593595,0.15628867,96149.0,96148.0,0.02480281]
[1740319593791,0.15628867,96149.0,96148.0,0.02280281]
[1740319594038,0.15628867,96149.0,96148.0,0.02480281]
[1740319594429,0.15628867,96149.0,96148.0,0.02280281]
[1740319594598,0.15628867,96149.0,96148.0,0.02380281]
[1740319595715,0.15628867,96149.0,96148.0,0.02580281]
[1740319596159,0.15628867,96149.0,96148.0,0.02380281]
[1740319596403,0.15628867,96149.0,96148.0,0.02580281]
[1740319598295,0.15628867,96149.0,96148.0,0.0046592]
[1740319599370,0.15628867,96149.0,96135.0,0.0016994]
[1740319600511,0.15628867,96149.0,96135.0,0.0046994]
[1740319603632,0.02588867,96149.0,96135.0,0.0046994]
[1740319606355,0.02588867,96149.0,96136.0,0.11718654]
[1740319607535,0.02588867,96149.0,96135.0,0.0046994]
[1740319607773,0.02588867,96149.0,96135.0,0.10734509]
[1740319608304,0.02588867,96149.0,96135.0,0.10534509]
[1740319608506,0.02588867,96149.0,96135.0,0.10434509]
[1740319608842,0.02588867,96149.0,96136.0,0.001]
[1740319609244,0.02588867,96149.0,96136.0,0.002]
[1740319611034,0.02588867,96149.0,96136.0,0.001]
[1740319611426,0.02588867,96149.0,96135.0,0.0016994]
[1740319612839,0.02588867,96149.0,96135.0,0.0026994]
[1740319613168,0.02588867,96149.0,96136.0,0.0016992]
[1740319613823,0.02503907,96148.0,96136.0,0.0016992]
[1740319614879,0.02503907,96148.0,96136.0,0.0026992]
[1740319616275,0.02503907,96148.0,96136.0,0.0016992]
[1740319616483,0.02503907,96148.0,96136.0,0.0036992]
[1740319619210,0.02503907,96148.0,96136.0,0.0056992]
[1740319630751,0.02503907,96148.0,96137.0,0.11718654]
[1740319632118,0.02503907,96148.0,96137.0,0.11918654]
[1740319632321,0.02503907,96148.0,96137.0,0.12118654]
[1740319635612,0.02503907,96148.0,96137.0,0.16848654]
[1740319636211,0.02503907,96148.0,96139.0,0.01454085]